fUSD/lending_fUSD_20240420
["ID","MTS","AMOUNT","RATE_DAILY","PERIOD"]
[323093579,1713648640530,-3509.84200496,0.000154,2]
[323093581,1713648640539,-171.25463459,0.000154,2]
[323093583,1713648640548,-155.78336681,0.000154,2]
[323093585,1713648640557,-185.41458989,0.0001545,2]
[323093588,1713648640568,-162.06,0.0001549,2]
[323093590,1713648640578,-173.72520229,0.0001549,2]
[323093591,1713648640589,-319.73553725,0.00015498,2]
[323093594,1713648640599,-2220.53200739,0.00015498,2]
[323093596,1713648640610,-155.10574814,0.00015498,2]
[323093597,1713648640618,-1838.98431284,0.00015498,2]
[323093599,1713648640627,-274.46770814,0.00015499,2]
[323093601,1713648640636,-627.7744994,0.00015499,2]
[323093603,1713648640645,-3030.48,0.00015499,2]
[323093605,1713648640654,-500.0,0.00015499,2]
[323093607,1713648640663,-3733.53,0.00015499,2]
[323093610,1713648640673,-1045.43,0.00015499,2]
[323093611,1713648640683,-3479.52,0.00015499,2]
[323093613,1713648640693,-370.66760312,0.000155,2]
[323093615,1713648640702,-248280.88283589,0.000155,2]
[323093648,1713648643041,-1000.87999974,0.00015499,2]
[323093649,1713648643053,-704.733448,0.00015499,2]
[323093650,1713648643065,-1198.59655226,0.00015499,2]
[323093651,1713648643075,-1961.20344773,0.000155,2]
[323093652,1713648643224,-4778.56233376,0.000155,2]
[323093671,1713648645997,-202080.90098935,0.000155,2]
[323093672,1713648646010,-304968.96003378,0.000155,2]
[323093673,1713648646215,-1006.5749565,0.000155,2]
[323093674,1713648646272,-410.14904101,0.000155,2]
[323093675,1713649161978,-953.0094624,0.00011908,2]
[323093676,1713649162004,-150.0,0.00011909,2]
[323093677,1713649162028,-10563.53852359,0.00011909,2]
[323093678,1713649162051,-155.0,0.0001191,2]
[323093679,1713649162076,-5544.53670484,0.0001191,2]
[323093680,1713649162099,-1244.09332357,0.00011912,2]
[323093681,1713649162122,-266.041,0.00011925,2]
[323093682,1713649522224,550.96,0.00011497,2]
[323093683,1713649763139,-2366.30374223,0.00012764,2]
[323093684,1713649763161,-300.83463544,0.0001315,2]
[323093697,1713649832408,-685.05424735,0.0001315,2]
[323093698,1713649832464,-517.9614323,0.0001315,2]
[323093699,1713649832475,-798.52968491,0.0001315,2]
[323093700,1713649832485,-4.58053119,0.00013165,2]
[323093701,1713649832521,-484.32,0.00013165,2]
[323093702,1713649832533,-976.82946881,0.00013165,2]
[323093703,1713649832542,-331.24742149,0.00013176,2]
[323093704,1713649832551,-2605.31186584,0.00013177,2]
[323093705,1713649832562,-950.20757094,0.00013177,2]
[323093706,1713649832578,-404.406,0.00013177,2]
[323093707,1713649832637,-3981.48688633,0.00013177,2]
[323093708,1713649832648,-6008.02767689,0.00013177,2]
[323093709,1713649832657,-308.01,0.00013256,2]
[323093710,1713649832666,-308.01,0.00013292,2]
[323093711,1713649832675,-308.01,0.00013328,2]
[323093712,1713649832684,-308.01,0.00013365,2]
[323093713,1713649832693,-308.01,0.00013401,2]
[323093715,1713649832702,-527.69,0.00013404,2]
[323093717,1713649832713,-527.69,0.00013407,2]
[323093719,1713649832722,-527.69,0.00013411,2]
[323093721,1713649832730,-527.69,0.00013415,2]
[323093722,1713649832739,-527.69,0.00013418,2]
[323093724,1713649832748,-527.69,0.00013422,2]
[323093726,1713649832758,-150.99,0.00013422,2]
[323093728,1713649832767,-527.69,0.00013425,2]
[323093730,1713649832776,-527.69,0.00013429,2]
[323093732,1713649832785,-527.69,0.00013432,2]
[323093734,1713649832794,-527.69,0.00013436,2]
[323093736,1713649832803,-2091.03233811,0.00013436,2]
[323093739,1713649832814,-4318.56012524,0.00013436,2]
[323093742,1713649832832,-576.32490571,0.00013436,2]
[323093744,1713649832843,-665.08469825,0.00013436,2]
[323093753,1713649838023,-6265.55003545,0.00013436,2]
[323093756,1713649838079,-9983.44789724,0.00013436,2]
[323093757,1713649838089,-308.01,0.00013437,2]
[323093758,1713649838099,-527.69,0.00013439,2]
[323093759,1713649838108,-527.69,0.00013443,2]
[323093760,1713649838120,-527.69,0.00013446,2]
[323093761,1713649838129,-527.69,0.0001345,2]
[323093762,1713649838139,-527.69,0.00013453,2]
[323093763,1713649838148,-250.0,0.00013456,2]
[323093764,1713649838158,-527.69,0.00013457,2]
[323093765,1713649838167,-527.69,0.0001346,2]
[323093766,1713649838176,-527.69,0.00013464,2]
[323093767,1713649838186,-527.69,0.00013468,2]
[323093768,1713649838196,-527.69,0.00013471,2]
[323093769,1713649838206,-308.01,0.00013474,2]
[323093770,1713649838216,-308.01,0.0001351,2]
[323093771,1713649838226,-308.01,0.00013546,2]
[323093772,1713649838235,-308.01,0.00013583,2]
[323093773,1713649838246,-480.0,0.000136,2]
[323093774,1713649838256,-308.01,0.00013619,2]
[323093775,1713649838265,-200.0,0.00013625,2]
[323093776,1713649838274,-308.01,0.00013655,2]
[323093777,1713649838284,-150.0,0.00013671,2]
[323093778,1713649838294,-308.01,0.00013692,2]
[323093779,1713649838303,-500.0,0.00013699,2]
[323093780,1713649838313,-699.61,0.00013699,2]
[323093781,1713649838322,-308.01,0.00013728,2]
[323093782,1713649838332,-550.96,0.0001376,2]
[323093783,1713649838342,-308.01,0.00013765,2]
[323093784,1713649838352,-158.16,0.00013782,2]
[323093785,1713649838361,-308.01,0.00013801,2]
[323093786,1713649838371,-308.01,0.00013837,2]
[323093787,1713649838380,-308.01,0.00013874,2]
[323093788,1713649838389,-308.01,0.0001391,2]
[323093789,1713649838398,-308.01,0.00013946,2]
[323093790,1713649838407,-1250.0,0.00014,2]
[323093791,1713649838417,-1822.21277453,0.000142,2]
[323093792,1713649838426,-239.68531746,0.00014326,2]
[323093793,1713649838436,-175.47432567,0.00014326,2]
[323093794,1713649838446,-10196.52330783,0.00014327,2]
[323093795,1713649838455,-1290.37089388,0.00014327,2]
[323093796,1713649838466,-624.12,0.00014385,2]
[323093797,1713649838475,-624.12,0.00014389,2]
[323093798,1713649838484,-624.12,0.00014392,2]
[323093799,1713649838494,-624.12,0.00014396,2]
[323093800,1713649838503,-624.12,0.000144,2]
[323093801,1713649838512,-624.12,0.00014404,2]
[323093802,1713649838521,-624.12,0.00014408,2]
[323093803,1713649838531,-624.12,0.00014411,2]
[323093804,1713649838540,-624.12,0.00014415,2]
[323093805,1713649838549,-624.12,0.00014419,2]
[323093806,1713649838558,-624.12,0.00014423,2]
[323093807,1713649838567,-624.12,0.00014427,2]
[323093808,1713649838578,-624.12,0.0001443,2]
[323093809,1713649838588,-624.12,0.00014434,2]
[323093810,1713649838598,-624.12,0.00014438,2]
[323093811,1713649838607,-624.12,0.00014442,2]
[323093812,1713649838617,-624.12,0.00014445,2]
[323093813,1713649838626,-200.0,0.00014447,2]
[323093814,1713649838636,-624.12,0.00014449,2]
[323093815,1713649838645,-624.12,0.00014453,2]
[323093816,1713649838654,-624.12,0.00014457,2]
[323093817,1713649838664,-157.6,0.00014569,2]
[323093818,1713649838674,-167.33,0.00014835,2]
[323093819,1713649838683,-520.0,0.00014947,2]
[323093820,1713649838693,-213.93,0.00015068,2]
[323093821,1713649838702,-300.0,0.00015299,2]
[323093822,1713649838712,-1001.87,0.00015299,2]
[323093823,1713649838721,-3502.03,0.00015299,2]
[323093824,1713649838731,-11418.13192525,0.000153,2]
[323093825,1713649839194,-2022.6949102,0.000153,2]
[323093826,1713649839207,-729.82228752,0.000153,2]
[323093827,1713649839219,-1325.81220542,0.000153,2]
[323093828,1713649839229,-9860.33139325,0.000153,2]
[323093829,1713649839241,-4058.37164456,0.000153,2]
[323093830,1713649839253,-379.88735711,0.000153,2]
[323093831,1713649839270,-1571.2760012,0.000153,2]
[323093832,1713649839286,-4662.85677549,0.000153,2]
[323093833,1713649839296,-37560.62088251,0.000153,2]
[323093834,1713649839307,-2936.09954424,0.000153,2]
[323093835,1713649839319,-3466.66028671,0.000153,2]
[323093836,1713649839330,-866.13511901,0.000153,2]
[323093837,1713649839342,-648.6,0.000153,2]
[323093839,1713649842063,-662.47809905,0.000153,2]
[323093840,1713649842125,-767.4938066,0.000153,2]
[323093841,1713649842138,-3531.82491885,0.000153,2]
[323093842,1713649842151,-147097.21831142,0.000153,2]
[323093843,1713649842161,-480.0,0.000153,2]
[323093844,1713649842171,-251.27451082,0.00015343,2]
[323093845,1713649842181,-992.59134,0.0001535,2]
[323093846,1713649842193,-275.4109967,0.00015382,4]
[323093847,1713649842203,-305.07906936,0.00015397,2]
[323093848,1713649842214,-155.0,0.00015398,2]
[323093849,1713649842223,-180.68788228,0.00015398,2]
[323093850,1713649842233,-301.07124124,0.00015398,2]
[323093851,1713649842243,-407.97409068,0.00015398,2]
[323093852,1713649842254,-155.0,0.00015398,2]
[323093853,1713649842264,-597.96032771,0.00015398,2]
[323093854,1713649842274,-155.30008766,0.00015398,2]
[323093855,1713649842284,-397.3328317,0.00015398,2]
[323093856,1713649842295,-155.0,0.00015398,2]
[323093857,1713649842306,-155.39757706,0.00015398,2]
[323093858,1713649842316,-157.40175635,0.00015398,2]
[323093859,1713649842325,-325.32875202,0.00015398,2]
[323093860,1713649842337,-267.13908293,0.00015398,2]
[323093861,1713649842347,-680.8066243,0.00015398,2]
[323093862,1713649842357,-618.71071819,0.00015398,2]
[323093863,1713649842367,-156.3850435,0.00015398,2]
[323093864,1713649842377,-194.18145296,0.00015398,2]
[323093865,1713649842385,-206.54437025,0.00015398,2]
[323093866,1713649842394,-155.0,0.00015398,2]
[323093867,1713649842403,-313.57148398,0.00015398,2]
[323093868,1713649842412,-239.68779562,0.00015398,2]
[323093869,1713649842421,-155.2401728,0.00015398,2]
[323093870,1713649842430,-408.60422186,0.00015398,2]
[323093871,1713649842439,-156.65013488,0.00015398,2]
[323093872,1713649842448,-1058.36793939,0.00015399,2]
[323093873,1713649842457,-207.28883958,0.00015399,2]
[323093874,1713649842466,-342.94151451,0.00015399,2]
[323093875,1713649842477,-221.66861802,0.00015399,2]
[323093876,1713649842487,-16977.97448994,0.00015399,2]
[323093877,1713649842496,-500.0,0.00015399,2]
[323093878,1713649842506,-3577.96,0.00015399,2]
[323093879,1713649842515,-500.0,0.00015399,2]
[323093880,1713649842524,-2783.21,0.00015399,2]
[323093881,1713649842533,-1000.0,0.000154,2]
[323093882,1713649842542,-5705.5566759,0.000154,2]
[323093883,1713649842554,-696.2,0.000154,2]
[323093884,1713649842566,-20603.4463241,0.000154,2]
[323093885,1713649842577,-10874.1571,0.000154,2]
[323093886,1713649842587,-68106.0,0.000154,2]
[323093887,1713649842598,-500.0,0.000154,2]
[323093888,1713649842609,-172.89250017,0.000154,2]
[323093889,1713649842619,-185.41458989,0.000154,2]
[323093890,1713649842629,-175.58953541,0.000154,2]
[323093891,1713649842638,-190.2507398,0.000154,2]
[323093892,1713649842648,-7500.0,0.000154,2]
[323093893,1713649842657,-171.25463459,0.000154,2]
[323093894,1713649842666,-599.0425219,0.000154,2]
[323093895,1713649842676,-156.51142689,0.0001549,2]
[323093896,1713649842685,-162.06,0.0001549,2]
[323093897,1713649842694,-155.0,0.00015498,2]
[323093898,1713649842703,-160.81941679,0.00015498,2]
[323093899,1713649842712,-174.16559919,0.00015498,2]
[323093900,1713649842723,-522.28292988,0.00015498,2]
[323093901,1713649842733,-155.0,0.00015498,2]
[323093902,1713649842742,-166.94364196,0.00015498,2]
[323093903,1713649842752,-155.17839332,0.00015498,2]
[323093904,1713649842762,-4191.3354,0.00015498,2]
[323093905,1713649842771,-155.0,0.00015498,2]
[323093906,1713649842780,-200.07388486,0.00015498,2]
[323093907,1713649842789,-704.18979387,0.00015498,2]
[323093909,1713649842799,-375.99594554,0.00015498,2]
[323093911,1713649842808,-545.63051093,0.00015498,2]
[323093913,1713649842817,-353.57414038,0.00015498,2]
[323093915,1713649842827,-155.0,0.00015498,2]
[323093917,1713649842836,-363.00732385,0.00015498,2]
[323093919,1713649842845,-155.0,0.00015498,2]
[323093921,1713649842855,-2354.33560631,0.00015498,2]
[323093923,1713649842864,-1119.94264385,0.00015499,2]
[323093925,1713649842873,-747.37099285,0.00015499,2]
[323093927,1713649842883,-526.2102462,0.00015499,2]
[323093928,1713649842892,-500.0,0.00015499,2]
[323093930,1713649842901,-523.66195964,0.00015499,2]
[323093932,1713649842909,-296.5340825,0.000155,2]
[323093934,1713649842919,-251424.04811533,0.000155,2]
[323093936,1713649842930,-476.56979241,0.000155,2]
[323093939,1713649842941,-4896.92,0.000155,2]
[323093942,1713649842952,-1100.73904058,0.000155,2]
[323093947,1713649842972,-647.56071899,0.000155,2]
[323093951,1713649842983,-684.22475735,0.000155,2]
[323093954,1713649842994,-45955.9814627,0.000155,2]
[323093961,1713649843021,-252.43701998,0.000155,2]
[323093964,1713649843032,-7058.3,0.000155,2]
[323093974,1713649843076,-34258.0187931,0.000155,2]
[323093978,1713649843087,-1883.65102,0.000155,2]
[323093982,1713649843128,-31010.9589,0.000155,2]
[323093987,1713649843184,-880.029151,0.000155,2]
[323093988,1713649843195,-305.74151709,0.000155,2]
[323093989,1713649843241,-251.06618023,0.000155,2]
[323093990,1713649843252,-1962.2339759,0.000155,2]
[323093991,1713649843264,-1838.75385252,0.000155,2]
[323093992,1713649843277,-298.774,0.000155,2]
[323093993,1713649843299,-278.05523846,0.000155,2]
[323093994,1713649843310,-1458.70376593,0.000155,2]
[323093995,1713649843357,-646.38980015,0.000155,2]
[323093996,1713649843368,-1104.6360013,0.000155,2]
[323094000,1713649846134,-1309.99765462,0.000155,2]
[323094001,1713649846146,-176445.19409591,0.000155,2]
[323094002,1713649846245,-626.08111507,0.000155,2]
[323094003,1713649846304,-18560.266541,0.000155,2]
[323094004,1713649846316,-6231.59735195,0.000155,2]
[323094005,1713649846360,-14522.91221009,0.000155,2]
[323094006,1713649846372,-28264.79068205,0.000155,2]
[323094007,1713649846383,-38828.63791428,0.000155,2]
[323094023,1713650028822,3958.67953721,0.000281,120]
[323094036,1713651032209,-948.37885836,0.00012107,2]
[323094038,1713651032221,-272.58859127,0.00012107,2]
[323094039,1713651032230,-154.89403532,0.00012207,2]
[323094040,1713651032261,-312.06068321,0.00012207,2]
[323094041,1713651032272,-56.47528147,0.00012207,2]
[323094042,1713651032281,-404.08411348,0.000137,2]
[323094043,1713651032292,-345.91588652,0.000137,2]
[323094044,1713651032302,-157.6,0.00013916,2]
[323094045,1713651032311,-158.16,0.00013955,2]
[323094046,1713651032321,-250.0,0.00014013,2]
[323094047,1713651032330,-349.8,0.00014015,2]
[323094048,1713651032339,-4553.20208226,0.00014015,2]
[323094049,1713651032352,-812.29179736,0.00014015,2]
[323094050,1713651032366,-3032.973371,0.00014015,2]
[323094051,1713651032387,-990.04107208,0.00014015,2]
[323094052,1713651032432,-338.70707334,0.00014015,2]
[323094054,1713651032489,-1052.80232157,0.00014015,2]
[323094068,1713651038333,-739.25228239,0.00014015,2]
[323094069,1713651038342,-1534.24,0.00014018,2]
[323094070,1713651038352,-507.41,0.00014023,2]
[323094071,1713651038361,-712.0,0.00014025,2]
[323094072,1713651038370,-233.51,0.00014096,2]
[323094073,1713651038380,-2000.0,0.00014121,3]
[323094074,1713651038389,-157.62,0.00014139,2]
[323094075,1713651038398,-288.0,0.00014189,2]
[323094076,1713651038407,-159.35,0.00014391,2]
[323094077,1713651038415,-523.43,0.00014471,2]
[323094078,1713651038424,-986.25117372,0.00014823,2]
[323094079,1713651038435,-334.21632628,0.00014823,2]
[323094080,1713651038446,-958.78609238,0.000149,2]
[323094081,1713651038455,-1.84758134,0.00014923,2]
[323094083,1713651038604,-785.04757384,0.00014923,2]
[323094084,1713651038613,-155.17081557,0.00014998,2]
[323094085,1713651038623,-431.2357963,0.00014999,2]
[323094086,1713651038633,-706.56305197,0.00015,2]
[323094087,1713651038642,-439.46,0.00015,2]
[323094088,1713651038663,-63688.92125675,0.00015,2]
[323094089,1713651038688,-173.46,0.00015052,2]
[323094090,1713651038698,-3964.2352,0.0001508,2]
[323094091,1713651038708,-255.9446,0.0001508,2]
[323094092,1713651038717,-209.8975,0.0001508,2]
[323094093,1713651038727,-434.6079,0.0001508,2]
[323094094,1713651038736,-168.15,0.00015096,2]
[323094095,1713651038745,-150.0,0.00015101,2]
[323094096,1713651038754,-11757.1321,0.0001518,2]
[323094097,1713651038763,-7500.0,0.0001518,2]
[323094098,1713651038772,-216.13390309,0.00015199,2]
[323094099,1713651038782,-171.62168247,0.00015199,2]
[323094100,1713651038791,-175.5895354,0.00015199,2]
[323094101,1713651038800,-150.0,0.00015247,2]
[323094102,1713651038809,-164.9,0.0001527,3]
[323094103,1713651038818,-157.25566212,0.0001527,2]
[323094104,1713651038826,-162.06,0.0001527,2]
[323094105,1713651038836,-750.24025544,0.00015278,2]
[323094106,1713651038845,-300.0,0.00015279,2]
[323094107,1713651038855,-2667.24,0.00015279,2]
[323094108,1713651038864,-1001.87,0.00015279,2]
[323094109,1713651038873,-500.0,0.00015279,2]
[323094110,1713651038882,-500.0,0.00015279,2]
[323094111,1713651038891,-3837.0,0.00015279,2]
[323094112,1713651038900,-330.26043988,0.00015279,2]
[323094113,1713651038910,-3428.88,0.00015279,2]
[323094114,1713651038919,-336.82208724,0.0001528,2]
[323094115,1713651038928,-1514144.80078081,0.0001528,2]
[323094116,1713651038938,-620.32,0.00015299,2]
[323094117,1713651038948,-500.0,0.00015299,2]
[323094118,1713651038959,-165.77016192,0.00015345,2]
[323094119,1713651038969,-213.94,0.00015383,2]
[323094120,1713651038977,-200.0,0.00015398,2]
[323094121,1713651038987,-161.19500253,0.00015399,2]
[323094122,1713651038997,-155.0,0.00015399,2]
[323094123,1713651039006,-150.0,0.000154,2]
[323094124,1713651039015,-1476.43098399,0.00015496,2]
[323094125,1713651039025,-1506.0,0.00015497,2]
[323094126,1713651039034,-303.18150946,0.00015497,2]
[323094127,1713651039043,-8459.05475984,0.00015498,2]
[323094128,1713651039053,-723.57402049,0.00015498,2]
[323094129,1713651039062,-155.15436509,0.00015499,2]
[323094130,1713651039071,-2253.60254604,0.00015499,2]
[323094131,1713651039081,-61225.04870788,0.000155,2]
[323094132,1713651039090,-156.0026956,0.000155,2]
[323094133,1713651039100,-893.03613,0.000155,2]
[323094134,1713651039109,-2667.24,0.00015553,2]
[323094135,1713651039118,-1001.87,0.00015553,2]
[323094136,1713651039127,-500.0,0.00015553,2]
[323094137,1713651039136,-392.9623729,0.00015553,2]
[323094138,1713651039146,-3837.0,0.00015553,2]
[323094139,1713651039155,-3428.88,0.00015553,2]
[323094140,1713651039164,-712.0,0.00015778,2]
[323094141,1713651039174,-167.33,0.00015809,2]
[323094142,1713651039183,-2667.24,0.00015827,2]
[323094143,1713651039193,-1001.87,0.00015827,2]
[323094144,1713651039202,-500.0,0.00015827,2]
[323094145,1713651039438,-3837.0,0.00015827,2]
[323094146,1713651039448,-3428.88,0.00015827,2]
[323094147,1713651039459,-167.02,0.00015831,2]
[323094148,1713651039470,-168.38,0.00015831,2]
[323094149,1713651039480,-288.0,0.00015962,2]
[323094150,1713651039490,-1300.0,0.00016,2]
[323094151,1713651039499,-216.13390304,0.00016013,2]
[323094152,1713651039508,-2667.24,0.00016101,2]
[323094153,1713651039518,-1001.87,0.00016101,2]
[323094154,1713651039527,-500.0,0.00016101,2]
[323094155,1713651039537,-3837.0,0.00016101,2]
[323094156,1713651039546,-3428.88,0.00016101,2]
[323094157,1713651039556,-1545.92,0.00016116,2]
[323094158,1713651039566,-41414.7742,0.00016295,2]
[323094159,1713651039575,-2667.24,0.00016375,2]
[323094160,1713651039584,-1001.87,0.00016375,2]
[323094161,1713651039594,-500.0,0.00016375,2]
[323094162,1713651039603,-3837.0,0.00016375,2]
[323094163,1713651039612,-3428.88,0.00016375,2]
[323094164,1713651039621,-1223.62381622,0.000165,2]
[323094165,1713651039631,-2667.24,0.00016649,2]
[323094166,1713651039640,-1001.87,0.00016649,2]
[323094167,1713651039651,-500.0,0.00016649,2]
[323094168,1713651039660,-3837.0,0.00016649,2]
[323094169,1713651039670,-3428.88,0.00016649,2]
[323094170,1713651039679,-151.95,0.00016719,2]
[323094171,1713651039689,-523.43,0.00016735,2]
[323094172,1713651039698,-150.0,0.00016754,2]
[323094173,1713651039708,-150.0,0.00016754,2]
[323094174,1713651039718,-150.0,0.00016754,2]
[323094175,1713651039727,-150.0,0.00016754,2]
[323094176,1713651039736,-150.0,0.00016754,2]
[323094177,1713651039746,-2294.0,0.00016754,2]
[323094178,1713651039755,-969.0,0.00016754,2]
[323094179,1713651039765,-1393.0,0.00016754,2]
[323094180,1713651039774,-461.0,0.00016754,2]
[323094181,1713651039784,-541.0,0.00016754,2]
[323094182,1713651039793,-1255.0,0.00016754,2]
[323094183,1713651039803,-1327.546,0.00016754,2]
[323094184,1713651039813,-257.0,0.00016754,2]
[323094185,1713651039823,-436.0,0.00016754,2]
[323094186,1713651039832,-609.0,0.00016754,2]
[323094187,1713651039842,-1857.0,0.00016754,2]
[323094188,1713651039851,-807.0,0.00016754,2]
[323094189,1713651039860,-1474.0,0.00016754,2]
[323094190,1713651039870,-3118.0,0.00016754,2]
[323094191,1713651039879,-2444.0,0.00016754,2]
[323094192,1713651039888,-399.0,0.00016754,2]
[323094193,1713651039898,-150.0,0.00016754,2]
[323094194,1713651039907,-214.0,0.00016754,2]
[323094195,1713651039916,-1640.0,0.00016754,2]
[323094196,1713651039926,-1140.0,0.00016754,2]
[323094197,1713651039935,-443.0,0.00016754,2]
[323094198,1713651039944,-250.0,0.00016754,2]
[323094199,1713651039954,-2704.0,0.00016754,2]
[323094200,1713651039966,-37676.0,0.00016754,2]
[323094201,1713651039975,-5891.0,0.00016754,2]
[323094203,1713651039984,-5727.0,0.00016754,2]
[323094204,1713651039993,-1055.0,0.00016754,2]
[323094205,1713651040003,-1534.24,0.00016757,2]
[323094206,1713651040012,-216.13390304,0.00016828,2]
[323094207,1713651040021,-1229.0,0.000169,2]
[323094208,1713651040031,-4100.8679925,0.000169,2]
[323094209,1713651040040,-5983.85250359,0.000169,2]
[323094210,1713651040049,-3372.7189417,0.000169,2]
[323094211,1713651040058,-189.93127907,0.000169,2]
[323094212,1713651040067,-2667.24,0.00016923,2]
[323094214,1713651040076,-1001.87,0.00016923,2]
[323094216,1713651040086,-3837.0,0.00016923,2]
[323094218,1713651040095,-3428.88,0.00016923,2]
[323094220,1713651040104,-521.53624991,0.00017,2]
[323094222,1713651040113,-151.0,0.00017,2]
[323094224,1713651040122,-151.0,0.00017,2]
[323094226,1713651040131,-984.64632557,0.00017,2]
[323094228,1713651040140,-984.64632557,0.00017,2]
[323094230,1713651040150,-984.64632557,0.00017,2]
[323094232,1713651040159,-984.64632557,0.00017,2]
[323094234,1713651040168,-984.64632557,0.00017,2]
[323094236,1713651040177,-984.64632557,0.00017,2]
[323094238,1713651040186,-984.64632557,0.00017,2]
[323094239,1713651040196,-984.64632557,0.00017,2]
[323094241,1713651040205,-984.64632557,0.00017,2]
[323094243,1713651040216,-984.64632557,0.00017,2]
[323094245,1713651040225,-984.64632557,0.00017,2]
[323094247,1713651040234,-984.64632557,0.00017,2]
[323094249,1713651040243,-984.64632557,0.00017,2]
[323094251,1713651040252,-984.64632557,0.00017,2]
[323094253,1713651040262,-984.64632557,0.00017,2]
[323094255,1713651040271,-984.64632557,0.00017,2]
[323094257,1713651040280,-984.64632557,0.00017,2]
[323094259,1713651040289,-984.64632557,0.00017,2]
[323094261,1713651040298,-984.64632557,0.00017,2]
[323094263,1713651040308,-984.64632557,0.00017,2]
[323094265,1713651040317,-984.64632557,0.00017,2]
[323094267,1713651040326,-984.64632557,0.00017,2]
[323094269,1713651040336,-984.64632557,0.00017,2]
[323094271,1713651040346,-984.64632557,0.00017,2]
[323094273,1713651040355,-984.64632557,0.00017,2]
[323094275,1713651040365,-984.64632557,0.00017,2]
[323094277,1713651040376,-984.64632557,0.00017,2]
[323094280,1713651040386,-984.64632557,0.00017,2]
[323094282,1713651040395,-984.64632557,0.00017,2]
[323094284,1713651040404,-984.64632557,0.00017,2]
[323094286,1713651040414,-984.64632557,0.00017,2]
[323094288,1713651040424,-984.64632557,0.00017,2]
[323094289,1713651040433,-984.64632557,0.00017,2]
[323094292,1713651040443,-984.64632557,0.00017,2]
[323094293,1713651040457,-984.64632557,0.00017,2]
[323094295,1713651040467,-984.64632557,0.00017,2]
[323094298,1713651040478,-984.64632557,0.00017,2]
[323094300,1713651040487,-984.64632557,0.00017,2]
[323094301,1713651040498,-984.64632557,0.00017,2]
[323094303,1713651040507,-984.64632557,0.00017,2]
[323094305,1713651040516,-984.64632557,0.00017,2]
[323094307,1713651040526,-984.64632557,0.00017,2]
[323094309,1713651040535,-984.64632557,0.00017,2]
[323094311,1713651040546,-984.64632557,0.00017,2]
[323094313,1713651040556,-984.64632557,0.00017,2]
[323094315,1713651040565,-984.64632557,0.00017,2]
[323094317,1713651040574,-984.64632557,0.00017,2]
[323094319,1713651040583,-984.64632557,0.00017,2]
[323094321,1713651040593,-984.64632557,0.00017,2]
[323094323,1713651040602,-984.64632557,0.00017,2]
[323094325,1713651040612,-984.64632557,0.00017,2]
[323094328,1713651040623,-984.64632557,0.00017,2]
[323094330,1713651040633,-984.64632557,0.00017,2]
[323094332,1713651040642,-984.64632557,0.00017,2]
[323094334,1713651040652,-984.64632557,0.00017,2]
[323094336,1713651040661,-984.64632557,0.00017,2]
[323094338,1713651040671,-984.64632557,0.00017,2]
[323094340,1713651040681,-984.64632557,0.00017,2]
[323094342,1713651040692,-984.64632557,0.00017,2]
[323094344,1713651040702,-984.64632557,0.00017,2]
[323094346,1713651040712,-984.64632557,0.00017,2]
[323094349,1713651040721,-984.64632557,0.00017,2]
[323094351,1713651040731,-984.64632557,0.00017,2]
[323094353,1713651040740,-984.64632557,0.00017,2]
[323094355,1713651040750,-984.64632557,0.00017,2]
[323094357,1713651040759,-984.64632557,0.00017,2]
[323094359,1713651040770,-984.64632557,0.00017,2]
[323094361,1713651040780,-984.64632557,0.00017,2]